bitfinex-derivatives/quotes_BTCF0:USTF0_20250127
["timestamp","ask_amount","ask_price","bid_price","bid_amount"]
[1737984364093,0.3608,100810.0,100800.0,1.946742]
[1737984364288,0.3608,100810.0,100800.0,0.446742]
[1737984364501,0.3608,100810.0,100800.0,0.471542]
[1737984364700,0.47198956,100810.0,100800.0,0.323242]
[1737984364896,0.47198956,100810.0,100800.0,0.339102]
[1737984365201,0.47198956,100810.0,100780.0,2.77624619]
[1737984365202,0.198442,100800.0,100780.0,0.00056]
[1737984365397,0.7216,100790.0,100770.0,0.198492]
[1737984365597,0.57932819,100780.0,100770.0,0.198492]
[1737984365794,0.3608,100780.0,100770.0,0.198492]
[1737984365996,0.3608,100780.0,100740.0,0.62896519]
[1737984365997,0.47105256,100780.0,100760.0,0.198508]
[1737984366195,0.3608,100770.0,100740.0,0.00988979]
[1737984366397,0.7216,100750.0,100740.0,0.00794]
[1737984366596,0.920143,100750.0,100740.0,0.01588]
[1737984366794,0.8331194,100750.0,100740.0,0.01588]
[1737984367001,1.0316594,100750.0,100740.0,0.01588]
[1737984367396,1.0316594,100750.0,100740.0,0.00794]
[1737984367595,0.8331194,100750.0,100710.0,0.35004868]
[1737984367802,0.3608,100730.0,100720.0,0.198599]
[1737984368498,0.3608,100730.0,100720.0,0.206539]
[1737984368499,0.7216,100730.0,100720.0,0.206539]
[1737984368797,0.83462839,100730.0,100720.0,0.214479]
[1737984369003,0.83462839,100730.0,100720.0,0.01588]
[1737984369503,0.83462839,100730.0,100720.0,0.214479]
[1737984369706,0.83462839,100730.0,100720.0,0.198599]
[1737984370304,0.7216,100730.0,100720.0,0.198599]
[1737984370992,0.49666654,100760.0,100720.0,0.57932819]
[1737984370993,0.3608,100750.0,100720.0,0.57932819]
[1737984371194,3.5e-07,100760.0,100750.0,0.19854]
[1737984371400,3.5e-07,100760.0,100750.0,0.55934]
[1737984372001,3.5e-07,100760.0,100750.0,0.19854]
[1737984372304,0.16807572,100770.0,100760.0,0.198521]
[1737984372603,0.50716769,100790.0,100760.0,0.198521]
[1737984372604,0.50716769,100790.0,100780.0,0.198481]
[1737984372996,6.9e-07,100790.0,100780.0,0.77780919]
[1737984373203,0.36080069,100790.0,100780.0,0.198481]
[1737984373403,6.9e-07,100790.0,100780.0,0.198481]
[1737984373908,6.9e-07,100790.0,100780.0,0.559281]
[1737984374108,6.9e-07,100790.0,100780.0,2.27780919]
[1737984375704,1.8e-07,100800.0,100790.0,0.198462]
[1737984375905,1.8e-07,100800.0,100790.0,0.559262]
[1737984376305,1.8e-07,100800.0,100790.0,2.059262]
[1737984376905,0.09764451,100800.0,100790.0,0.198462]
[1737984377105,0.45844451,100800.0,100790.0,0.198462]
[1737984377508,0.09764451,100800.0,100790.0,2.059262]
[1737984377724,0.1998755,100830.0,100800.0,0.198442]
[1737984377725,0.3622895,100830.0,100800.0,0.198442]
[1737984377906,0.3622895,100830.0,100820.0,0.198402]
[1737984378298,0.3608,100860.0,100820.0,2.37932819]
[1737984378500,0.23188572,100870.0,100860.0,0.198324]
[1737984378806,0.10148807,100900.0,100890.0,0.198265]
[1737984379309,0.01260214,100900.0,100890.0,0.198265]
[1737984379612,0.4871519,100900.0,100890.0,0.41679319]
[1737984379806,0.4871519,100900.0,100890.0,0.198265]
[1737984380508,0.6853969,100900.0,100880.0,0.19842949]
[1737984380714,0.3608,100890.0,100880.0,0.00014849]
[1737984381104,0.198288,100880.0,100840.0,0.1454]
[1737984381305,0.3608,100850.0,100840.0,0.223147]
[1737984382111,0.3608,100850.0,100840.0,0.02479]
[1737984382412,0.4666008,100850.0,100840.0,0.198363]
[1737984382714,0.3608,100850.0,100840.0,0.198363]
[1737984383015,0.3608,100850.0,100830.0,0.41705568]
[1737984383209,0.3608,100840.0,100830.0,0.00014849]
[1737984383417,0.559163,100840.0,100810.0,0.198418]
[1737984383710,0.3608,100820.0,100810.0,0.21852819]
[1737984383911,0.47221399,100840.0,100830.0,0.198383]
[1737984384109,0.7216,100840.0,100820.0,0.198399]
[1737984384314,0.3608,100830.0,100800.0,0.198429]
[1737984384514,0.3608,100810.0,100800.0,0.198429]
[1737984384711,0.3608,100820.0,100810.0,0.21852819]
[1737984385013,0.36094849,100830.0,100820.0,0.198402]
[1737984385219,0.72174849,100830.0,100820.0,0.198402]
[1737984385907,0.36094849,100830.0,100820.0,0.198402]
[1737984386107,0.46526229,100830.0,100820.0,0.198402]
[1737984386504,0.36094849,100830.0,100820.0,0.198402]
[1737984388117,0.00014849,100830.0,100820.0,0.198402]
[1737984388912,4.9e-07,100830.0,100820.0,0.559202]
[1737984389115,4.9e-07,100830.0,100820.0,0.712902]
[1737984389820,4.9e-07,100830.0,100820.0,0.737692]
[1737984390023,4.9e-07,100830.0,100820.0,2.237692]
[1737984391020,0.14817971,100830.0,100820.0,2.237692]
[1737984391206,0.4464622,100850.0,100820.0,3.04697819]
[1737984391414,0.32631368,100880.0,100840.0,1.03930219]
[1737984391709,0.11656299,100890.0,100870.0,0.57932819]
[1737984392019,0.09099139,100890.0,100880.0,0.198284]
[1737984392218,0.51481144,100900.0,100870.0,0.73282819]
[1737984392419,0.51481144,100900.0,100890.0,0.198265]
[1737984392622,0.51495993,100900.0,100890.0,0.41679319]
[1737984393320,0.15415993,100900.0,100890.0,0.41679319]
[1737984393918,0.07338992,100900.0,100890.0,0.77759319]
[1737984394119,0.3608,100940.0,100890.0,0.92888919]
[1737984394317,0.558967,100940.0,100930.0,0.198186]
[1737984394620,1.02843216,100940.0,100930.0,0.198186]
[1737984395312,0.83026516,100940.0,100930.0,0.198186]
[1737984395513,0.7216,100940.0,100930.0,0.198186]
[1737984396409,0.83433886,100940.0,100930.0,0.198186]
[1737984396615,0.83433886,100940.0,100920.0,0.19834549]
[1737984396913,0.198218,100920.0,100890.0,0.21852819]
[1737984397117,0.3608,100930.0,100890.0,0.21852819]
[1737984397118,0.3608,100900.0,100890.0,0.21852819]
[1737984397311,0.3608,100900.0,100880.0,0.198281]
[1737984397523,0.3608,100890.0,100880.0,0.198281]
[1737984399216,0.36094849,100900.0,100880.0,0.198284]
[1737984399523,4.9e-07,100900.0,100890.0,0.41679319]
[1737984399714,4.9e-07,100900.0,100890.0,2.72339319]
[1737984399921,4.9e-07,100900.0,100890.0,2.42339319]
[1737984400227,4.9e-07,100900.0,100890.0,2.72339319]
[1737984402318,4.9e-07,100900.0,100890.0,2.73131319]
[1737984402926,0.0014875,100930.0,100890.0,2.53304819]
[1737984403124,0.0014875,100930.0,100920.0,0.41673419]
[1737984404027,0.0014875,100930.0,100920.0,0.77753419]
[1737984404028,5e-07,100930.0,100920.0,0.77753419]
[1737984404819,5e-07,100930.0,100920.0,1.07753419]
[1737984405022,9.9e-07,100940.0,100930.0,0.198186]
[1737984405227,9.9e-07,100940.0,100930.0,2.223686]
[1737984405526,4.6e-07,100950.0,100940.0,0.198167]
[1737984405721,4.6e-07,100950.0,100940.0,0.77749519]
[1737984405921,4.6e-07,100950.0,100940.0,0.93509519]
[1737984406117,2.5e-07,100970.0,100940.0,2.23692819]
[1737984406317,2.5e-07,100970.0,100960.0,1.13825519]
[1737984407017,0.16559531,100980.0,100970.0,0.198108]
[1737984407223,0.16559531,100980.0,100970.0,0.558908]
[1737984407628,0.04460531,100980.0,100970.0,0.558908]
[1737984407832,3.1e-07,100980.0,100970.0,0.558908]
[1737984408238,3.1e-07,100980.0,100970.0,0.717308]
[1737984408927,0.23680011,100990.0,100980.0,0.198088]
[1737984409123,0.23680011,100990.0,100980.0,0.77741619]
[1737984409320,0.59760011,100990.0,100980.0,0.198088]
[1737984409522,0.79566911,100990.0,100980.0,0.41661619]
[1737984411132,0.59760011,100990.0,100980.0,0.41661619]
[1737984411719,0.3608,100990.0,100980.0,0.41661619]
[1737984411922,0.558878,100990.0,100970.0,0.20617249]
[1737984412134,0.3608,100980.0,100970.0,0.20617249]
[1737984412331,0.3608,100980.0,100950.0,0.198144]
[1737984412535,0.7216,100960.0,100950.0,0.198144]
[1737984413424,0.7216,100960.0,100950.0,0.206064]
[1737984414335,0.919727,100960.0,100950.0,0.206067]
[1737984414631,0.919733,100960.0,100940.0,0.42474868]
[1737984414834,0.3608,100950.0,100940.0,0.42474868]
[1737984415534,0.3608,100950.0,100940.0,0.41682868]
[1737984415727,0.3608,100950.0,100940.0,0.42474868]
[1737984416825,0.3608,100950.0,100940.0,0.43266868]
[1737984418235,0.3608,100960.0,100950.0,0.198147]
[1737984418523,0.3608,100990.0,100950.0,0.410336]
[1737984418724,0.3608,100990.0,100980.0,0.198088]
[1737984419230,0.67130177,100990.0,100970.0,0.198101]
[1737984419439,0.558888,100980.0,100970.0,0.02475]
[1737984419734,0.3608,100980.0,100970.0,0.222858]
[1737984420032,0.47015251,100980.0,100970.0,0.222858]
[1737984420337,0.66824051,100980.0,100970.0,0.198108]
[1737984420637,0.3608,100980.0,100970.0,0.41663619]
[1737984421026,0.36094849,100990.0,100980.0,0.198088]
[1737984421227,0.36094849,100990.0,100970.0,0.21852819]
[1737984421534,0.3608,100980.0,100970.0,0.198104]
[1737984421936,0.46655888,100980.0,100970.0,0.198104]
[1737984422232,0.46655888,100980.0,100960.0,0.00014849]
[1737984422438,0.3608,100970.0,100940.0,0.213998]
[1737984422627,0.7216,100950.0,100910.0,0.37632819]
[1737984422925,0.3608,100930.0,100910.0,0.78668419]
[1737984423133,0.3608,100930.0,100920.0,0.198206]
[1737984423332,0.3608,100930.0,100920.0,0.247757]
[1737984423637,0.3608,100930.0,100920.0,0.198206]
[1737984424031,0.3608,100930.0,100920.0,0.206126]
[1737984424329,0.3608,100930.0,100920.0,0.214046]
[1737984424635,0.47064805,100930.0,100920.0,0.214046]
[1737984425025,0.3608,100930.0,100920.0,0.214046]
[1737984425226,0.36094849,100940.0,100930.0,0.198186]
[1737984425429,0.00014849,100940.0,100930.0,0.41671419]
[1737984426323,0.00014849,100940.0,100930.0,0.77751419]
[1737984427622,0.00014849,100940.0,100930.0,2.27751419]
[1737984427825,0.00014849,100940.0,100930.0,2.28754452]
[1737984428125,4.9e-07,100940.0,100930.0,2.28754452]
[1737984428324,4.9e-07,100940.0,100930.0,2.45104452]
[1737984428521,4.9e-07,100940.0,100930.0,2.60954452]
[1737984429434,0.00140395,100960.0,100950.0,0.198147]
[1737984429643,9.5e-07,100960.0,100950.0,0.77747519]
[1737984430123,9.5e-07,100960.0,100950.0,2.27747519]
[1737984431635,0.3608,100960.0,100950.0,0.198141]
[1737984431830,0.55893,100960.0,100950.0,0.198141]
[1737984432228,0.66795806,100960.0,100950.0,0.198141]
[1737984433039,0.46982806,100960.0,100950.0,0.198141]
[1737984433235,0.46982806,100960.0,100940.0,0.00014849]
[1737984433436,0.558947,100950.0,100940.0,0.00014849]
[1737984433739,0.558907,100950.0,100940.0,0.00014849]
[1737984433940,0.66851132,100950.0,100940.0,0.00014849]
[1737984434534,0.47036432,100950.0,100940.0,0.19831549]
[1737984434840,0.36076,100950.0,100940.0,0.19831549]
[1737984435145,0.47501205,100950.0,100940.0,0.19831549]
[1737984435637,0.36076,100950.0,100940.0,0.19831549]
[1737984435837,0.4669845,100950.0,100940.0,0.19831549]
[1737984436234,0.4669845,100950.0,100940.0,0.00014849]
[1737984436235,0.6651315,100950.0,100940.0,0.00014849]
[1737984436542,0.9651315,100950.0,100940.0,0.00014849]
[1737984436943,0.198167,100940.0,100930.0,0.51800476]
[1737984437143,0.3608,100940.0,100930.0,0.71619076]
[1737984437545,0.3608,100940.0,100930.0,0.93471895]
[1737984437754,0.3608,100940.0,100930.0,2.43471895]
[1737984437939,0.3608,100940.0,100930.0,2.44263895]
[1737984438141,0.00014849,100950.0,100940.0,0.198167]
[1737984438846,0.00014849,100950.0,100940.0,1.698167]
[1737984439053,0.00014849,100950.0,100940.0,2.058967]
[1737984439939,4.9e-07,100950.0,100940.0,2.058967]
[1737984440144,0.1,101000.0,100990.0,0.198069]
[1737984440345,0.1,101000.0,100990.0,1.13819719]
[1737984440740,0.84516905,101030.0,100990.0,2.44012819]
[1737984440940,0.84516905,101030.0,101010.0,0.198029]
[1737984440941,0.84592905,101030.0,101010.0,0.198029]
[1737984441135,0.47362983,101020.0,101010.0,0.198029]
[1737984441348,0.3608,101020.0,101010.0,0.198029]
[1737984442344,0.10972454,101030.0,101020.0,0.19801]
[1737984442755,0.22348395,101030.0,101020.0,0.19801]
[1737984442944,0.10972454,101030.0,101020.0,0.77733819]
[1737984443245,0.23526867,101040.0,101020.0,0.57932819]
[1737984443449,0.23526867,101040.0,101030.0,0.77731819]
[1737984443948,0.00148574,101060.0,101050.0,0.197951]
[1737984444153,0.00148574,101060.0,101050.0,0.558751]
[1737984444956,0.00148574,101060.0,101050.0,0.77727919]
[1737984445349,0.00148574,101060.0,101050.0,1.13807919]
[1737984445545,0.00148574,101060.0,101050.0,0.41647919]
[1737984445755,0.00148574,101060.0,101050.0,0.77727919]
[1737984446549,0.20705191,101070.0,101050.0,0.57932819]
[1737984446852,9.724e-05,101070.0,101060.0,0.77725919]
[1737984447053,0.297855,101100.0,101080.0,0.197877]
[1737984447242,0.658655,101100.0,101080.0,0.41640519]
[1737984447447,0.2056026,101100.0,101090.0,0.41640119]
[1737984447650,0.1,101100.0,101090.0,0.41640119]
[1737984449149,0.558617,101120.0,101090.0,0.41640119]
[1737984449150,0.3608,101120.0,101090.0,0.57932819]
[1737984449345,0.3608,101120.0,101110.0,0.21852819]
[1737984449554,0.47485959,101120.0,101110.0,0.21852819]
[1737984449754,0.67267359,101120.0,101090.0,0.57932819]
[1737984449960,0.3608,101110.0,101100.0,0.02486849]
[1737984450857,0.00148502,101130.0,101110.0,0.197834]
[1737984450858,0.36228502,101130.0,101110.0,0.197834]
[1737984451047,0.36228502,101130.0,101110.0,0.41636219]
[1737984451244,0.46633048,101130.0,101110.0,0.41636219]
[1737984451648,0.46633048,101130.0,101100.0,0.02486849]
[1737984451649,0.3608,101120.0,101100.0,0.22271849]
[1737984451848,0.3608,101110.0,101100.0,0.02486849]
[1737984452049,0.3608,101110.0,101100.0,0.00014849]
[1737984452354,0.47363362,101110.0,101100.0,0.00014849]
[1737984452855,0.47363362,101110.0,101100.0,0.19800149]
[1737984453256,0.47363362,101110.0,101100.0,0.00014849]
[1737984453257,0.67146762,101110.0,101100.0,0.00014849]
[1737984453751,0.67146762,101110.0,101060.0,0.197928]
[1737984453752,0.77363362,101110.0,101060.0,0.197928]
[1737984453951,0.3608,101070.0,101060.0,0.197928]
[1737984454163,0.3608,101080.0,101050.0,0.57932819]
[1737984454455,0.46525073,101080.0,101070.0,0.41644019]
[1737984454848,0.3608,101080.0,101070.0,0.41644019]
[1737984455051,0.3608,101080.0,101070.0,0.42435019]
[1737984455655,0.36094849,101090.0,101080.0,0.197892]
[1737984455958,0.00014849,101090.0,101080.0,0.197892]
[1737984456752,0.00014849,101090.0,101080.0,0.558692]
[1737984457762,0.00014849,101090.0,101080.0,2.058692]
[1737984458562,0.3608,101110.0,101100.0,0.197853]
[1737984459247,0.3608,101110.0,101090.0,0.57932819]
[1737984459248,0.3608,101110.0,101070.0,1.10623345]
[1737984459458,0.3608,101090.0,101080.0,0.197887]
[1737984459657,0.3608,101090.0,101080.0,0.197877]
[1737984459957,0.3608,101100.0,101090.0,0.197873]
[1737984460358,0.47427614,101100.0,101090.0,0.197873]
[1737984461463,0.47427614,101100.0,101080.0,0.00014849]
[1737984461656,0.558673,101090.0,101080.0,0.00014849]
[1737984461852,0.3608,101090.0,101080.0,0.00014849]
[1737984462157,0.10316294,101090.0,101080.0,0.19804049]
[1737984462465,0.542,101120.0,101090.0,0.049467]
[1737984462650,0.3608,101120.0,101090.0,0.62879219]
[1737984462852,0.46481077,101120.0,101110.0,0.197834]
[1737984463757,0.46481077,101120.0,101110.0,0.16816041]
[1737984463960,0.3608,101120.0,101110.0,0.3866886]
[1737984464353,0.36228502,101130.0,101110.0,0.57932819]
[1737984464557,0.00148502,101130.0,101120.0,0.558614]
[1737984467160,0.30581914,101130.0,101120.0,0.197814]
[1737984467558,0.46882514,101130.0,101110.0,0.00996145]
[1737984467782,0.3608,101120.0,101100.0,0.02486849]
[1737984468071,0.55862,101120.0,101100.0,0.19799649]
[1737984468270,0.66973895,101120.0,101100.0,0.19799649]
[1737984468562,0.30893895,101120.0,101100.0,0.36094849]
[1737984468760,0.11111895,101120.0,101110.0,0.77716219]
[1737984468959,0.56008302,101130.0,101110.0,0.77715319]
[1737984469372,0.46834651,101130.0,101120.0,0.197814]
[1737984469865,0.10754651,101130.0,101120.0,0.197814]
[1737984471659,0.197814,101120.0,101110.0,0.3608]
[1737984471862,0.197834,101110.0,101100.0,0.02486849]
[1737984472060,0.558634,101110.0,101100.0,0.00014849]
[1737984472265,0.66757877,101110.0,101100.0,0.00014849]
[1737984473164,0.558619,101120.0,101100.0,0.19800149]
[1737984473667,0.197834,101110.0,101100.0,0.36094849]
[1737984473872,0.558634,101110.0,101100.0,0.00014849]
[1737984474064,0.66653976,101110.0,101100.0,0.00014849]
[1737984475564,0.66653976,101110.0,101070.0,0.574529]
[1737984475565,0.197887,101090.0,101070.0,0.574529]
[1737984476073,0.31203731,101090.0,101070.0,2.074529]
[1737984476267,0.67283731,101090.0,101070.0,2.074529]
[1737984476577,0.31203731,101090.0,101080.0,0.197892]
[1737984476763,0.19803549,101090.0,101080.0,0.197892]
[1737984477265,0.00014849,101090.0,101080.0,0.197892]
[1737984477774,0.00014849,101090.0,101080.0,0.558692]
[1737984479775,0.726017,101120.0,101100.0,0.197842]
[1737984480068,0.83725569,101120.0,101100.0,0.558642]
[1737984480278,0.47203869,101120.0,101110.0,0.197834]
[1737984480461,0.66985269,101120.0,101100.0,0.558648]
[1737984480873,0.66985269,101120.0,101100.0,2.05879649]
[1737984481279,0.197834,101110.0,101100.0,0.00014849]
[1737984481467,0.197834,101110.0,101100.0,0.00805849]
[1737984481773,0.30733562,101110.0,101100.0,0.36885849]
[1737984481974,0.30733562,101110.0,101100.0,0.56671149]
[1737984482480,0.30733562,101110.0,101100.0,0.55880149]
[1737984482980,0.30733562,101110.0,101100.0,0.36094849]
[1737984484265,0.30733562,101110.0,101100.0,0.00014849]
[1737984484471,0.30733562,101110.0,101100.0,0.36094849]
[1737984485076,0.88666381,101110.0,101100.0,0.00014849]
[1737984485281,0.197873,101090.0,101080.0,0.03264]
[1737984485477,0.558673,101090.0,101080.0,0.02473]
[1737984485669,0.197892,101080.0,101070.0,0.558703]
[1737984486072,0.197878,101090.0,101070.0,0.558703]
[1737984486273,0.558678,101090.0,101070.0,2.058703]
[1737984486480,0.558678,101090.0,101070.0,2.05885149]
[1737984486481,0.66646877,101090.0,101070.0,2.05885149]
[1737984486875,0.558692,101080.0,101070.0,0.00014849]
[1737984487285,0.66500131,101080.0,101070.0,0.00014849]
[1737984487474,0.30420131,101080.0,101070.0,0.00014849]
[1737984487677,0.00014849,101090.0,101070.0,0.57947668]
[1737984487976,0.00014849,101090.0,101080.0,0.558692]
[1737984489284,0.92786975,101130.0,101080.0,0.3608]
[1737984489485,0.92786975,101130.0,101110.0,0.197831]
[1737984489486,1.12567575,101130.0,101110.0,0.197831]
[1737984489677,0.11163089,101120.0,101110.0,0.558631]
[1737984489885,0.87650664,101130.0,101110.0,0.558631]
[1737984490071,0.76487575,101130.0,101110.0,0.558631]
[1737984490277,0.30346054,101120.0,101110.0,0.197831]
[1737984490476,0.197814,101120.0,101110.0,0.19797949]
[1737984490776,0.10564654,101120.0,101110.0,0.55877949]
[1737984490981,0.30346054,101120.0,101110.0,0.55877949]
[1737984491178,0.30346054,101120.0,101110.0,0.19797949]
[1737984491385,0.66426054,101120.0,101110.0,0.00014849]
[1737984491687,0.197873,101090.0,101080.0,0.37094661]
[1737984491986,0.197873,101090.0,101080.0,0.3608]
[1737984492183,0.10544737,101090.0,101070.0,0.558705]
[1737984492378,0.10544737,101090.0,101060.0,0.719746]
[1737984492379,0.197901,101080.0,101060.0,0.719746]
[1737984492691,0.197901,101080.0,101060.0,0.719226]
[1737984492982,0.46639586,101080.0,101060.0,0.16064849]
[1737984493288,0.558712,101070.0,101060.0,0.00014849]
[1737984493681,0.30150428,101070.0,101060.0,0.00014849]
[1737984493882,0.10359228,101070.0,101060.0,0.55887949]
[1737984494289,0.19804849,101080.0,101060.0,0.55887949]
[1737984494584,0.30842066,101080.0,101060.0,0.55887949]
[1737984495278,0.11052066,101080.0,101070.0,0.197912]
[1737984495591,0.30841466,101080.0,101060.0,0.55886849]
[1737984495983,0.30841466,101080.0,101060.0,0.36094849]
[1737984496280,0.00014849,101080.0,101070.0,0.558712]
[1737984496683,0.00014849,101080.0,101070.0,0.77724019]
[1737984497688,0.00014849,101080.0,101070.0,2.27724019]
[1737984497879,0.727943,101110.0,101090.0,0.197868]
[1737984498084,0.727943,101110.0,101090.0,0.558668]
[1737984498397,0.83712157,101110.0,101090.0,0.558668]
[1737984498691,0.74052701,101110.0,101100.0,0.197853]
[1737984499383,0.18188401,101110.0,101100.0,0.558653]
[1737984499787,0.37971801,101110.0,101100.0,0.558653]
[1737984499987,0.74051801,101110.0,101090.0,0.55880749]
[1737984500191,0.18188401,101110.0,101100.0,0.558653]
[1737984500393,0.37971801,101110.0,101100.0,0.3608]
[1737984500694,0.37972101,101110.0,101090.0,0.55881649]
[1737984501084,0.74052101,101110.0,101090.0,0.55881649]
[1737984501278,0.197853,101100.0,101090.0,0.36094849]
[1737984501484,0.558653,101100.0,101090.0,0.00014849]
[1737984501691,0.67231249,101100.0,101090.0,0.00014849]
[1737984502786,0.197884,101090.0,101070.0,0.558711]
[1737984502983,0.558684,101090.0,101070.0,0.558711]
[1737984503188,0.66638424,101090.0,101070.0,0.558711]
[1737984503490,0.73649643,101090.0,101060.0,0.37049065]
[1737984503689,0.558704,101080.0,101060.0,0.56841865]
[1737984503989,0.197912,101070.0,101060.0,0.36094849]
[1737984504197,0.558712,101070.0,101060.0,0.00014849]
[1737984504492,0.67044358,101070.0,101060.0,0.00014849]
[1737984506689,0.30964358,101070.0,101060.0,0.55887949]
[1737984506990,0.07285393,101080.0,101060.0,0.50212821]
[1737984507189,0.07285393,101080.0,101070.0,0.558712]
[1737984507389,0.38287382,101080.0,101070.0,0.3608]
[1737984507587,0.18497882,101080.0,101070.0,0.3608]
[1737984507891,0.18497882,101080.0,101070.0,2.058712]
[1737984507892,0.11227338,101080.0,101070.0,2.058712]
[1737984508087,0.00014849,101080.0,101070.0,0.69989172]
[1737984508393,0.00014849,101080.0,101070.0,0.722012]
[1737984508584,0.00014849,101080.0,101070.0,2.222012]
[1737984508785,0.00014849,101080.0,101070.0,2.19232961]
[1737984508987,0.00014849,101080.0,101070.0,0.52902961]
[1737984509382,0.00014849,101080.0,101070.0,0.67020933]
[1737984509582,0.00014849,101080.0,101070.0,0.52902961]
[1737984509782,0.00014849,101080.0,101070.0,0.69493933]
[1737984509979,0.00014849,101080.0,101070.0,0.85023933]
[1737984510188,0.00014849,101080.0,101070.0,0.70905961]
[1737984510492,0.30774773,101080.0,101070.0,0.02473]
[1737984510692,0.44892745,101080.0,101070.0,0.02473]
[1737984510896,0.44892745,101080.0,101060.0,0.47217249]
[1737984511093,0.44892745,101080.0,101050.0,0.56848355]
[1737984511094,0.33909472,101070.0,101050.0,0.56848355]
[1737984511283,0.197931,101060.0,101050.0,0.37053855]
[1737984511483,0.69991072,101060.0,101040.0,0.885562]
[1737984511792,0.66240332,101060.0,101040.0,0.885562]
[1737984511991,0.66240332,101060.0,101040.0,0.88571049]
[1737984513589,0.30160332,101060.0,101050.0,0.3608]
[1737984513787,0.30160332,101060.0,101050.0,0.558751]
[1737984513991,0.10367232,101060.0,101050.0,0.558751]
[1737984514298,0.07294375,101070.0,101060.0,0.197931]
[1737984514691,0.18654574,101070.0,101060.0,0.558731]
[1737984514891,0.07294375,101070.0,101060.0,0.558731]
[1737984515089,0.21412347,101070.0,101050.0,0.3608]
[1737984515292,0.31964374,101070.0,101040.0,0.69746155]
[1737984515495,0.37637902,101070.0,101050.0,0.558744]
[1737984516094,0.54027079,101070.0,101050.0,0.558741]
[1737984516591,0.68145051,101070.0,101050.0,0.558741]
[1737984516786,0.69991072,101060.0,101040.0,0.56862255]
[1737984516988,0.33913072,101050.0,101040.0,0.00986155]
[1737984517184,0.197951,101050.0,101040.0,0.00014849]
[1737984517390,0.8039862,101050.0,101040.0,0.00014849]
[1737984518285,0.8039862,101050.0,101010.0,0.01582]
[1737984518286,0.9060352,101050.0,101010.0,0.01582]
[1737984518492,0.69998972,101020.0,101010.0,0.01582]
[1737984518999,0.96960931,101020.0,101010.0,0.01582]
[1737984519200,0.96960931,101020.0,101010.0,0.00791]
[1737984519494,0.60882131,101020.0,101000.0,0.10014849]
[1737984519695,0.60882131,101020.0,101000.0,0.29819349]
[1737984519998,0.60882131,101020.0,101000.0,0.65899349]
[1737984520197,0.10301959,101020.0,101010.0,0.198029]
[1737984520397,0.10301959,101020.0,101010.0,0.33920872]
[1737984520700,0.10301959,101020.0,101010.0,0.198029]
[1737984520891,0.10301959,101020.0,101010.0,0.558829]
[1737984524196,0.10301959,101020.0,101010.0,0.70000872]
[1737984524392,0.00014849,101030.0,101020.0,0.19801]
[1737984524694,0.00014849,101030.0,101020.0,0.55881]
[1737984525096,0.00014849,101030.0,101020.0,2.05881]
[1737984525805,0.11110426,101030.0,101020.0,0.55881]
[1737984526101,0.11110426,101030.0,101020.0,0.16831292]
[1737984526403,0.11110426,101030.0,101020.0,0.52911292]
[1737984527101,0.30909426,101030.0,101010.0,0.558823]
[1737984528095,0.198012,101020.0,101000.0,2.15950849]
[1737984528294,0.81108698,101030.0,101010.0,0.558827]
[1737984528490,0.10483196,101020.0,101010.0,0.558827]
[1737984528695,0.10498045,101030.0,101010.0,0.3608]
[1737984529004,0.00014849,101030.0,101020.0,0.55881]
[1737984529203,0.10324658,101030.0,101020.0,0.55881]
[1737984529797,0.30123658,101030.0,101010.0,0.558821]
[1737984529999,0.66203658,101030.0,101010.0,0.198021]
[1737984530204,0.66203658,101030.0,101010.0,0.558821]
[1737984530800,0.30123658,101030.0,101020.0,0.3608]
[1737984531002,0.10324658,101030.0,101020.0,0.55881]
[1737984531202,0.00014849,101030.0,101020.0,0.69998972]
[1737984531402,0.00014849,101030.0,101020.0,0.19801]
[1737984531604,0.00014849,101030.0,101020.0,0.55881]
[1737984532705,0.00014849,101030.0,101020.0,0.69998972]
[1737984532912,0.00014849,101030.0,101020.0,1.02428972]
[1737984533212,0.00014849,101030.0,101020.0,2.52428972]
[1737984534509,0.00014849,101030.0,101020.0,0.88311]
[1737984535201,0.00014849,101030.0,101020.0,0.52231]
[1737984535511,0.30284968,101030.0,101010.0,0.583567]
[1737984535711,0.19801,101020.0,101000.0,0.30611349]
[1737984535902,0.19801,101020.0,101000.0,0.66691349]
[1737984536102,0.30628863,101020.0,101000.0,0.66691349]
[1737984536699,0.30628863,101020.0,101010.0,0.70000872]
[1737984536700,0.10827863,101020.0,101010.0,0.70000872]
[1737984536906,0.00014849,101030.0,101010.0,0.70000872]
[1737984537105,0.00014849,101030.0,101020.0,0.3608]
[1737984537405,0.10943431,101030.0,101020.0,0.55881]
[1737984537603,0.00014849,101030.0,101020.0,0.69998972]
[1737984537806,0.00014849,101030.0,101020.0,0.55881]
[1737984538406,0.00014849,101030.0,101010.0,1.86923]
[1737984538714,0.00014849,101030.0,101020.0,0.3608]
[1737984538914,0.00014849,101030.0,101020.0,0.55881]
[1737984539214,0.00014849,101030.0,101010.0,0.36871]
[1737984539417,0.00014849,101030.0,101020.0,0.55881]
[1737984540107,0.00014849,101030.0,101020.0,0.69998972]
[1737984540507,0.00014849,101030.0,101020.0,0.89741]
[1737984540704,0.33931821,101030.0,101020.0,0.3608]
[1737984540901,0.80875667,101030.0,101010.0,0.56673]
[1737984541406,0.66757695,101030.0,101010.0,0.56673]
[1737984541602,0.19801,101020.0,101010.0,0.00791]
[1737984541907,0.198029,101010.0,101000.0,0.10014849]
[1737984542108,0.70000872,101010.0,101000.0,0.10014849]
[1737984542417,0.61213662,101010.0,100980.0,0.00792]
[1737984542610,0.86277972,100990.0,100970.0,0.3306]
[1737984542836,0.198088,100980.0,100960.0,0.7314422]
[1737984543011,0.198088,100980.0,100960.0,0.7393622]
[1737984543316,0.31240268,100980.0,100960.0,0.7393622]
[1737984543714,0.31255117,100980.0,100960.0,0.73951069]
[1737984544011,0.31255117,100980.0,100960.0,0.74743069]
[1737984544220,0.81453089,100980.0,100960.0,0.74743069]
[1737984544514,0.198108,100970.0,100960.0,0.18058769]
[1737984544715,0.11446317,100980.0,100960.0,0.70817321]
[1737984544905,0.00014849,100980.0,100970.0,0.558908]
[1737984545107,0.10871706,100980.0,100970.0,0.558908]
[1737984546306,0.10871706,100980.0,100970.0,0.70008772]
[1737984546508,0.00014849,100980.0,100970.0,0.70008772]
[1737984547711,0.00014849,100980.0,100970.0,2.20008772]
[1737984548613,0.00148645,101000.0,100970.0,2.00197972]
[1737984548814,0.00148645,101000.0,100980.0,0.198079]
[1737984549022,0.30346642,101000.0,100990.0,0.3608]